bitfinex/quotes_BTCUSD_20250602
["timestamp","ask_amount","ask_price","bid_price","bid_amount"]
[1748856877528,0.43805548,104930.0,104920.0,0.37723449]
[1748856878102,0.42852559,104930.0,104920.0,0.37723449]
[1748856878302,0.42852559,104930.0,104920.0,0.37723473]
[1748856878500,0.43805548,104930.0,104920.0,0.37723473]
[1748856878702,0.43805548,104930.0,104920.0,0.37723535]
[1748856878908,0.43805538,104930.0,104920.0,0.37723535]
[1748856879104,0.41899589,104930.0,104920.0,0.37723535]
[1748856879309,0.42852559,104930.0,104920.0,0.3705473]
[1748856879677,0.42852559,104930.0,104920.0,0.35271335]
[1748856880364,0.42852559,104930.0,104920.0,0.35940108]
[1748856880594,0.41899589,104930.0,104920.0,0.35271335]
[1748856880818,0.41899598,104930.0,104920.0,0.35940108]
[1748856881041,0.39993703,104930.0,104920.0,0.35940108]
[1748856881272,0.40946646,104930.0,104920.0,0.36608878]
[1748856881495,0.52073221,104940.0,104930.0,0.25569263]
[1748856881496,0.73000342,104940.0,104930.0,0.25569263]
[1748856881732,0.42852342,104940.0,104930.0,0.25569263]
[1748856881973,0.73000324,104940.0,104930.0,0.25569263]
[1748856882189,0.73000324,104940.0,104930.0,0.26237969]
[1748856882415,0.73953231,104940.0,104930.0,0.25569263]
[1748856882615,0.73953231,104940.0,104930.0,0.26237968]
[1748856883084,0.72047435,104940.0,104930.0,0.26238031]
[1748856883297,0.72047426,104940.0,104930.0,0.26238031]
[1748856883548,0.62863722,104940.0,104930.0,0.25285009]
[1748856883834,0.63063722,104940.0,104930.0,0.25569281]
[1748856884067,0.64016711,104940.0,104930.0,0.26522242]
[1748856884298,0.44105277,104940.0,104930.0,0.27475194]
[1748856884529,0.44105277,104940.0,104930.0,0.28143955]
[1748856884764,0.63163786,104940.0,104930.0,0.27475194]
[1748856884986,0.44105277,104940.0,104930.0,0.27475194]
[1748856885404,0.63163786,104940.0,104930.0,0.28143955]
[1748856885666,0.04111574,104940.0,104930.0,0.28143955]
[1748856885896,0.63163786,104940.0,104930.0,0.27191003]
[1748856886132,0.63163786,104940.0,104930.0,0.26522242]
[1748856886360,0.63163786,104940.0,104930.0,0.27191003]
[1748856887468,0.63163786,104940.0,104930.0,0.271909]
[1748856887693,0.63163786,104940.0,104930.0,0.28143852]
[1748856887911,0.63163786,104940.0,104930.0,0.28143821]
[1748856888558,0.43152361,104940.0,104930.0,0.28143821]
[1748856888786,0.43152361,104940.0,104930.0,0.28143795]
[1748856889001,0.63163786,104940.0,104930.0,0.28143795]
[1748856889208,0.64116711,104940.0,104930.0,0.28143795]
[1748856890093,0.64116711,104940.0,104930.0,0.27190843]
[1748856890314,0.64116711,104940.0,104930.0,0.26522242]
[1748856890536,0.6316384,104940.0,104930.0,0.25284899]
[1748856891498,0.6316384,104940.0,104930.0,0.25284913]
[1748856891722,0.6316384,104940.0,104930.0,0.25569281]
[1748856892164,1.01251756,104940.0,104930.0,0.22710325]
[1748856892401,1.01251756,104940.0,104930.0,0.23663341]
[1748856892651,0.61258053,104940.0,104930.0,0.23663341]
[1748856892878,0.61258053,104940.0,104930.0,0.24332354]
[1748856893100,0.61258053,104940.0,104930.0,0.25285352]
[1748856893536,0.61258053,104940.0,104930.0,0.25285389]
[1748856893762,0.61258053,104940.0,104930.0,0.27071053]
[1748856894007,0.61258053,104940.0,104930.0,0.26118055]
[1748856894219,0.60305137,104940.0,104930.0,0.23663341]
[1748856894468,0.60305137,104940.0,104930.0,0.26118142]
[1748856894896,0.20311434,104940.0,104930.0,0.26401686]
[1748856895107,0.91394035,104940.0,104930.0,0.28024156]
[1748856895343,0.91394035,104940.0,104930.0,0.28024218]
[1748856895578,0.91394035,104940.0,104930.0,0.27354814]
[1748856895795,0.91394035,104940.0,104930.0,0.28024378]
[1748856896235,0.91394035,104940.0,104930.0,0.280244]
[1748856896450,0.91394035,104940.0,104930.0,0.28024458]
[1748856896628,0.91394035,104940.0,104930.0,0.28977419]
[1748856897076,0.91394035,104940.0,104930.0,0.25569328]
[1748856897308,0.91394035,104940.0,104930.0,0.28024547]
[1748856897514,0.91394035,104940.0,104930.0,0.28025042]
[1748856897723,0.91394035,104940.0,104930.0,0.26239068]
[1748856897927,0.91394035,104940.0,104930.0,0.28025093]
[1748856898135,0.91394035,104940.0,104930.0,0.26522307]
[1748856898348,0.91394035,104940.0,104930.0,0.28978072]
[1748856898574,1.3043484,104940.0,104930.0,0.02459765]
[1748856898784,1.3043484,104940.0,104930.0,0.20850325]
[1748856899000,0.90441137,104940.0,104930.0,0.23663332]
[1748856899201,0.90441137,104940.0,104930.0,0.26119178]
[1748856899670,0.90441137,104940.0,104930.0,0.26119122]
[1748856899881,0.90441137,104940.0,104930.0,0.26119121]
[1748856900102,0.90441137,104940.0,104930.0,0.27072118]
[1748856900313,0.90441137,104940.0,104930.0,0.24496353]
[1748856900522,0.89488212,104940.0,104930.0,0.23663323]
[1748856900726,0.89488212,104940.0,104930.0,0.26119111]
[1748856901388,0.89488212,104940.0,104930.0,0.24333083]
[1748856901603,0.89488212,104940.0,104930.0,0.23663323]
[1748856902034,0.30436,104940.0,104930.0,0.23663323]
[1748856902239,0.91393971,104940.0,104930.0,0.27355295]
[1748856902453,0.91393971,104940.0,104930.0,0.28025053]
[1748856902673,0.90441119,104940.0,104930.0,0.27191982]
[1748856902892,0.92346915,104940.0,104930.0,0.28694809]
[1748856903103,0.91394035,104940.0,104930.0,0.28694809]
[1748856903291,0.91394035,104940.0,104930.0,0.28694836]
[1748856903670,0.91394035,104940.0,104930.0,0.29647797]
[1748856904375,0.91394035,104940.0,104930.0,0.27741866]
[1748856904801,0.91394035,104940.0,104930.0,0.27072101]
[1748856905005,0.91394035,104940.0,104930.0,0.27741866]
[1748856905345,0.90441128,104940.0,104930.0,0.26788903]
[1748856905550,0.90441128,104940.0,104930.0,0.25002862]
[1748856905760,0.90441128,104940.0,104930.0,0.26788946]
[1748856906553,0.90441128,104940.0,104930.0,0.27741935]
[1748856906973,0.89488212,104940.0,104930.0,0.27741935]
[1748856907392,0.89488212,104940.0,104930.0,0.2404989]
[1748856907621,0.89488212,104940.0,104930.0,0.26789059]
[1748856907842,0.89488212,104940.0,104930.0,0.03125762]
[1748856907843,1.29481915,104940.0,104930.0,0.03125762]
[1748856908052,1.29481915,104940.0,104930.0,0.00669758]
[1748856908252,1.29481915,104940.0,104930.0,0.02589758]
[1748856908458,1.29481915,104940.0,104930.0,0.00669758]
[1748856911931,1.30936,104940.0,104930.0,0.00669758]
[1748856912140,1.32766,104940.0,104930.0,0.00669758]
[1748856912368,1.32766,104940.0,104930.0,0.02539758]
[1748856912369,1.40412,104940.0,104930.0,0.02539758]
[1748856913436,1.40412,104940.0,104930.0,0.00669758]
[1748856914624,1.8650743,104940.0,104930.0,0.00669758]
[1748856914823,1.93040174,104940.0,104930.0,0.00669758]
[1748856915235,1.92380174,104940.0,104930.0,0.00669758]
[1748856915432,1.95242374,104940.0,104930.0,0.00669758]
[1748856915675,1.95902374,104940.0,104930.0,0.00669758]
[1748856917496,1.8936963,104940.0,104930.0,0.00669758]
[1748856918284,1.8870963,104940.0,104930.0,0.00669758]
[1748856928735,1.92681258,104940.0,104930.0,0.00669758]
[1748856928934,1.8870963,104940.0,104930.0,0.00669758]
[1748856929965,1.8936963,104940.0,104930.0,0.00669758]
[1748856930372,0.21467408,104930.0,104920.0,0.00683353]
[1748856930502,0.7274128,104930.0,104920.0,0.00683353]
[1748856932660,1.55986105,104930.0,104920.0,0.00683353]
[1748856932871,6.63486105,104930.0,104920.0,0.00783353]
[1748856933078,0.2097029,104910.0,104900.0,0.0365]
[1748856933299,1.40553696,104910.0,104900.0,0.0365]
[1748856934130,0.20019046,104900.0,104890.0,0.11254494]
[1748856934339,0.60012749,104900.0,104890.0,0.0363]
[1748856935540,0.62860443,104900.0,104890.0,0.0363]
[1748856937349,0.64314528,104900.0,104890.0,0.0363]
[1748856940358,0.7356565,104900.0,104890.0,0.0363]
[1748856940613,0.64314528,104900.0,104890.0,0.0363]
[1748856943778,0.24320825,104900.0,104890.0,0.0363]
[1748856944032,0.64314528,104900.0,104890.0,0.0363]
[1748856946420,5.61351679,104890.0,104850.0,0.20384088]
[1748856946624,0.99060455,104860.0,104850.0,0.00889833]
[1748856946877,0.01907386,104850.0,104840.0,0.00305174]
[1748856947112,0.62883407,104850.0,104840.0,0.00305174]
[1748856947337,0.60976021,104850.0,104840.0,0.00305174]
[1748856947539,0.60976021,104850.0,104840.0,0.20335687]
[1748856947745,0.60976021,104850.0,104820.0,0.19071606]
[1748856947746,0.02861648,104830.0,104820.0,0.21933572]
[1748856947946,0.02861648,104830.0,104820.0,0.33667203]
[1748856947947,0.43809221,104830.0,104820.0,0.33667203]
[1748856948117,0.42855305,104830.0,104820.0,0.3366723]
[1748856948318,0.41901416,104830.0,104820.0,0.3366723]
[1748856948518,0.01907713,104830.0,104820.0,0.3366723]
[1748856948940,0.01907713,104830.0,104820.0,0.33361999]
[1748856949126,0.0573333,104830.0,104820.0,0.33361999]
[1748856949333,0.01907713,104830.0,104820.0,0.33361108]
[1748856949531,0.02861602,104830.0,104820.0,0.35131108]
[1748856949752,0.02861602,104830.0,104820.0,0.37001109]
[1748856949994,0.02861602,104830.0,104820.0,0.36412973]
[1748856950378,0.03815518,104830.0,104820.0,0.36812973]
[1748856950802,0.43809221,104830.0,104820.0,0.36812973]
[1748856950973,0.42855305,104830.0,104820.0,0.36812973]
[1748856951968,0.43809212,104830.0,104820.0,0.36812973]
[1748856953460,0.47722262,104830.0,104820.0,0.36812973]
[1748856953958,0.45814466,104830.0,104820.0,0.36812973]
[1748856954165,0.33869132,104830.0,104820.0,0.0434]
[1748856954401,0.72908965,104830.0,104820.0,0.0434]
[1748856954622,0.32915262,104830.0,104820.0,0.0434]
[1748856954835,0.64893084,104830.0,104820.0,0.0434]
[1748856955052,0.64893084,104830.0,104820.0,0.0257]
[1748856955276,0.64893084,104830.0,104820.0,0.0217]
[1748856955472,0.64893084,104830.0,104820.0,0.0237]
[1748856956303,0.64893084,104830.0,104820.0,0.0207]
[1748856956518,0.64893084,104830.0,104820.0,0.0227]
[1748856957434,0.96121084,104830.0,104820.0,0.0227]
[1748856957632,0.66047381,104830.0,104820.0,0.0227]
[1748856957837,1.06041084,104830.0,104820.0,0.0414]
[1748856960306,1.06041084,104830.0,104820.0,0.24174344]
[1748856960715,0.66047381,104830.0,104820.0,0.24174344]
[1748856961123,1.06041084,104830.0,104820.0,0.24174344]
[1748856961329,1.05087186,104830.0,104820.0,0.05094016]
[1748856961539,1.05087186,104830.0,104820.0,0.0414]
[1748856961752,1.95653727,104830.0,104820.0,0.004]
[1748856961968,1.97473727,104830.0,104820.0,0.004]
[1748856962218,1.99393727,104830.0,104820.0,0.004]
[1748856962653,0.39194085,104820.0,104780.0,0.00364106]
[1748856962865,0.39194085,104820.0,104750.0,0.0187]
[1748856962866,0.21000317,104760.0,104750.0,0.0187]
[1748856963080,1.00987723,104760.0,104750.0,0.02755861]
[1748856963289,0.21002321,104750.0,104740.0,0.24752853]
[1748856963512,0.60041425,104750.0,104740.0,0.07624494]
[1748856963940,0.62855015,104750.0,104740.0,0.07624494]
[1748856964161,0.21004317,104740.0,104730.0,0.21003335]
[1748856964370,0.60998075,104740.0,104730.0,0.20051551]
[1748856964577,0.60998075,104740.0,104730.0,0.21006369]
[1748856964790,0.60998075,104740.0,104730.0,0.21961177]
[1748856965032,0.01909535,104730.0,104720.0,0.70720501]
[1748856965216,0.02864334,104730.0,104720.0,1.14301931]
[1748856965426,0.02864334,104730.0,104720.0,0.80301931]
[1748856965860,0.02864334,104730.0,104720.0,1.14301931]
[1748856966058,0.2196104,104730.0,104720.0,0.38215123]
[1748856966269,0.2196104,104730.0,104720.0,0.65007537]
[1748856966270,0.23015921,104730.0,104720.0,0.65007537]
[1748856966517,0.02009644,104730.0,104720.0,0.65007547]
[1748856966726,0.22061131,104730.0,104720.0,0.65962437]
[1748856966952,0.26801519,104730.0,104720.0,0.67317309]
[1748856967163,0.65965692,104730.0,104720.0,0.65391556]
[1748856967393,0.66920528,104730.0,104720.0,0.65391556]
[1748856967616,0.65010902,104730.0,104720.0,0.62529978]
[1748856968045,0.65010902,104730.0,104720.0,0.33303805]
[1748856968257,0.65010902,104730.0,104720.0,0.62533978]
[1748856968477,0.65010902,104730.0,104720.0,0.21808548]
[1748856968717,0.65010902,104730.0,104720.0,0.54850375]
[1748856968954,0.65010902,104730.0,104720.0,0.54850393]
[1748856969364,0.65010902,104730.0,104720.0,0.55805302]
[1748856969559,0.64910902,104730.0,104720.0,0.57315073]
[1748856969802,0.64910902,104730.0,104720.0,0.54350192]
[1748856970052,0.64910902,104730.0,104720.0,0.54650183]
[1748856971170,0.64910902,104730.0,104720.0,0.54650192]
[1748856971466,0.63956075,104730.0,104720.0,0.006]
[1748856972216,0.23837121,104730.0,104720.0,0.19698548]
[1748856972439,0.23837121,104730.0,104720.0,0.01554927]
[1748856972656,0.63001239,104730.0,104720.0,0.19398548]
[1748856972862,0.63001239,104730.0,104720.0,0.002]
[1748856973070,0.63001239,104730.0,104720.0,0.21208393]
[1748856973283,0.63001239,104730.0,104720.0,0.003]
[1748856973522,0.63001239,104730.0,104720.0,0.01254927]
[1748856976145,0.63001239,104730.0,104720.0,0.003]
[1748856976338,0.63001239,104730.0,104720.0,0.20353475]
[1748856976532,0.63001239,104730.0,104720.0,0.19398548]
[1748856976686,0.63001239,104730.0,104720.0,0.20353475]
[1748856977516,0.63001239,104730.0,104720.0,0.21308393]
[1748856977945,0.63001239,104730.0,104720.0,0.20353475]
[1748856978355,0.63001239,104730.0,104720.0,0.21308393]
[1748856978904,0.63001239,104730.0,104720.0,0.20353475]
[1748856979809,0.63001239,104730.0,104720.0,0.21308393]
[1748856980260,0.63001239,104730.0,104720.0,0.22263302]
[1748856981937,0.63956066,104730.0,104720.0,0.22263302]
[1748856982168,0.64910865,104730.0,104720.0,0.23218202]
[1748856983736,0.64910865,104730.0,104720.0,0.22263302]
[1748856985368,1.03136573,104730.0,104720.0,0.21308393]
[1748856986229,1.03136573,104730.0,104720.0,0.22263302]
[1748856990012,1.03136573,104730.0,104720.0,0.01254927]
[1748856990244,1.03136573,104730.0,104720.0,0.02143539]
[1748856990442,1.03136573,104730.0,104720.0,0.21242089]
[1748856990923,1.03136573,104730.0,104720.0,0.01188748]
[1748856991759,0.24642285,104730.0,104720.0,0.01188764]
[1748856991968,1.04896573,104730.0,104720.0,0.01188764]
[1748856992387,1.04896573,104730.0,104720.0,0.0119219]
[1748856992388,1.03136573,104730.0,104720.0,0.0119219]
[1748856992596,1.03136573,104730.0,104720.0,0.003]
[1748856992827,1.03136573,104730.0,104720.0,0.0119219]
[1748856993272,1.03136573,104730.0,104720.0,0.01192843]
[1748856994147,1.05066573,104730.0,104720.0,0.01192843]
[1748856994355,1.05066573,104730.0,104720.0,0.01193289]
[1748856994886,1.48926088,104730.0,104720.0,0.01193584]
[1748856995090,1.58962088,104730.0,104720.0,0.01193631]
[1748856995294,1.92962088,104730.0,104720.0,0.003]
[1748856995505,1.96394271,104730.0,104720.0,0.01193691]
[1748856995729,1.92962088,104730.0,104720.0,0.01193691]
[1748856995930,1.92962088,104730.0,104720.0,0.01093564]
[1748856996146,0.23317542,104720.0,104710.0,0.00305578]
[1748856996344,0.23317542,104720.0,104680.0,0.050271]
[1748856996345,0.21014395,104690.0,104680.0,0.050271]
[1748856996560,0.21014395,104690.0,104680.0,0.58146739]
[1748856996561,0.60186338,104690.0,104680.0,0.58146739]
[1748856996758,0.42037463,104690.0,104680.0,0.58146739]
[1748856997178,0.42037463,104690.0,104680.0,0.26998739]
[1748856997376,0.62096666,104690.0,104680.0,0.22212946]
[1748856997578,0.21969522,104690.0,104680.0,0.24172075]
[1748856997779,0.21969522,104690.0,104680.0,0.26957321]
[1748856997780,0.62096666,104690.0,104680.0,0.26957321]
[1748856998013,0.63051857,104690.0,104680.0,0.28212558]
[1748856998217,0.61141538,104690.0,104680.0,0.2534682]
[1748856998423,0.61141538,104690.0,104680.0,0.2728733]
[1748856998837,0.61141538,104690.0,104680.0,0.2758733]
[1748856999011,0.61141538,104690.0,104680.0,0.28542585]
[1748856999442,0.61141538,104690.0,104680.0,0.28242585]
[1748856999655,0.61141538,104690.0,104680.0,0.27942585]
[1748856999863,0.21014394,104690.0,104680.0,0.2361682]
[1748857000066,0.61141538,104690.0,104680.0,0.2552733]
[1748857000276,0.00955128,104690.0,104680.0,0.29357795]
[1748857000524,0.42037409,104690.0,104680.0,0.29357795]
[1748857000740,0.448599,104690.0,104680.0,0.29357795]
[1748857000947,0.42037418,104690.0,104680.0,0.29357795]
[1748857001197,0.42992573,104690.0,104680.0,0.29357795]
[1748857001403,0.42992573,104690.0,104680.0,0.60807454]
[1748857001595,0.42992573,104690.0,104680.0,0.61171569]
[1748857001823,0.42992573,104690.0,104680.0,0.60501795]
[1748857002031,0.42037418,104690.0,104680.0,0.61171568]
[1748857002245,0.42037418,104690.0,104680.0,0.61171569]
[1748857002452,0.00955128,104690.0,104680.0,0.61171569]
[1748857002659,0.42037427,104690.0,104680.0,0.61171569]
[1748857002882,0.42037427,104690.0,104680.0,0.29357795]
[1748857003094,0.41082272,104690.0,104680.0,0.30027148]
[1748857003306,0.42018313,104690.0,104680.0,0.30027148]
[1748857003519,0.42018313,104690.0,104680.0,0.3002709]
[1748857003740,0.40127144,104710.0,104700.0,0.24732296]
[1748857003964,0.75960201,104730.0,104720.0,0.20053466]
[1748857004198,0.02864607,104720.0,104710.0,0.24728655]
[1748857004447,0.4394666,104720.0,104710.0,0.24728655]
[1748857004628,0.6304529,104720.0,104710.0,0.23773737]
[1748857004852,0.6304529,104720.0,104710.0,0.22898719]
[1748857005278,0.22918146,104720.0,104710.0,0.23902283]
[1748857005490,0.6304529,104720.0,104710.0,0.23902283]
[1748857005722,0.22918146,104720.0,104710.0,0.23902283]
[1748857005931,0.6334529,104720.0,104710.0,0.23902283]
[1748857006337,0.6374529,104720.0,104710.0,0.24002283]
[1748857006674,0.007,104720.0,104710.0,0.25912283]
[1748857006883,0.007,104720.0,104710.0,0.37121502]
[1748857007072,0.007,104720.0,104710.0,0.36452667]
[1748857007313,0.007,104720.0,104710.0,0.40344499]
[1748857007517,0.007,104720.0,104710.0,0.41013278]
[1748857007733,0.007,104720.0,104710.0,0.75013278]
[1748857008148,0.007,104720.0,104710.0,0.75681999]
[1748857008369,0.003,104720.0,104710.0,0.72358977]
[1748857008554,0.40127144,104730.0,104720.0,0.25623219]
[1748857008856,0.41081816,104740.0,104730.0,0.25621122]
[1748857009062,0.42036506,104740.0,104730.0,0.25621122]
[1748857009275,0.42991223,104740.0,104730.0,0.25621122]
[1748857009479,0.42036506,104740.0,104730.0,0.25621122]
[1748857009910,0.42991205,104740.0,104730.0,0.25621122]
[1748857010121,0.46258044,104740.0,104730.0,0.25621122]
[1748857010344,0.4721277,104740.0,104730.0,0.25621122]
[1748857010547,0.45303345,104740.0,104730.0,0.25621122]
[1748857010780,0.46258053,104740.0,104730.0,0.25621122]
[1748857010997,0.43393983,104740.0,104730.0,0.25621122]
[1748857011207,0.45303336,104740.0,104730.0,0.25621122]
[1748857011419,0.45303327,104740.0,104730.0,0.25621122]
[1748857011605,0.44648646,104740.0,104730.0,0.25621122]
[1748857011831,0.46558017,104740.0,104730.0,0.25621122]
[1748857012085,0.44748646,104740.0,104730.0,0.25621122]
[1748857012292,0.43793983,104740.0,104730.0,0.25621122]
[1748857012494,0.44748646,104740.0,104730.0,0.25621122]
[1748857013449,0.40527144,104740.0,104730.0,0.25621122]
[1748857013594,0.40527144,104740.0,104730.0,0.35206552]
[1748857014221,0.004,104740.0,104730.0,0.35206552]
[1748857014531,0.004,104740.0,104730.0,0.35874284]
[1748857014934,0.004,104740.0,104730.0,0.35874276]
[1748857015312,0.004,104740.0,104730.0,0.35874271]
[1748857015516,0.004,104740.0,104730.0,0.3587427]
[1748857015717,0.004,104740.0,104730.0,0.67501988]
[1748857015935,0.004,104740.0,104730.0,0.6683427]
[1748857016149,0.02309353,104740.0,104730.0,0.36541841]
[1748857016353,0.004,104740.0,104730.0,0.77445841]
[1748857016599,0.004,104740.0,104730.0,0.77445636]
[1748857017348,0.004,104740.0,104730.0,0.7677827]
[1748857018168,0.004,104740.0,104730.0,0.77445636]
[1748857018366,0.004,104740.0,104730.0,0.7677827]
[1748857021422,0.41481825,104740.0,104730.0,0.7667827]
[1748857022065,0.41481825,104740.0,104730.0,0.3587427]
[1748857022276,0.41481816,104740.0,104730.0,0.7669827]
[1748857022843,0.42436506,104740.0,104730.0,0.7669827]
[1748857023078,0.004,104740.0,104730.0,0.7671027]
[1748857023279,0.62486151,104740.0,104730.0,0.32505269]
[1748857023432,0.63440886,104740.0,104730.0,0.63460849]
[1748857023632,0.63440886,104740.0,104730.0,0.62506068]
[1748857023834,0.62486205,104740.0,104730.0,0.62506087]
[1748857024034,0.62486205,104740.0,104730.0,0.63460886]
[1748857024235,0.6231678,104740.0,104730.0,0.00667718]
[1748857024460,0.6414678,104740.0,104730.0,0.00667718]
[1748857025126,0.24019636,104740.0,104730.0,0.00667718]
[1748857025335,0.6414678,104740.0,104730.0,0.00667718]
[1748857027262,0.24019636,104740.0,104730.0,0.00667718]
[1748857027496,0.6414678,104740.0,104730.0,0.00667718]
[1748857029145,1.04273924,104740.0,104730.0,0.00667718]
[1748857029874,0.6414678,104740.0,104730.0,0.00667718]
[1748857030838,0.73397902,104740.0,104730.0,0.00667718]
[1748857031095,1.04273924,104740.0,104730.0,0.00667718]
[1748857032106,0.6414678,104740.0,104730.0,0.00667718]
[1748857032354,0.9508678,104740.0,104730.0,0.00667718]
[1748857032560,0.6231678,104740.0,104730.0,0.00667718]
[1748857032771,0.9326078,104740.0,104730.0,0.00667718]
[1748857034211,0.61531488,104740.0,104730.0,0.22628867]
[1748857034417,0.63440914,104740.0,104730.0,0.24518867]
[1748857034623,0.42436533,104740.0,104730.0,0.25473639]
[1748857034843,0.44345994,104740.0,104730.0,0.25473639]
[1748857035074,0.63440895,104740.0,104730.0,0.23583639]
[1748857035282,0.6439564,104740.0,104730.0,0.22628867]
[1748857035489,0.63440959,104740.0,104730.0,0.22628885]
[1748857036161,0.62486251,104740.0,104730.0,0.22628885]
[1748857036365,0.61531525,104740.0,104730.0,0.21674086]
[1748857037389,0.61531525,104740.0,104730.0,0.22628885]
[1748857037592,0.61531525,104740.0,104730.0,0.23583675]
[1748857038009,0.61531525,104740.0,104730.0,0.24538456]
[1748857038963,0.61531525,104740.0,104730.0,0.23583675]
[1748857039625,0.61531525,104740.0,104730.0,0.25393675]
[1748857040566,0.61531525,104740.0,104730.0,0.26348456]
[1748857041921,0.61531525,104740.0,104730.0,0.25393675]
[1748857043702,0.004,104740.0,104730.0,0.26348447]
[1748857043925,0.41481825,104740.0,104730.0,0.28198447]
[1748857044150,0.42436533,104740.0,104730.0,0.28198447]
[1748857044935,0.43391259,104740.0,104730.0,0.28198447]
[1748857045183,0.43391259,104740.0,104730.0,0.26348447]
[1748857045855,0.63440895,104740.0,104730.0,0.26348447]
[1748857046561,0.6439564,104740.0,104730.0,0.26348456]
[1748857047012,0.45300739,104740.0,104730.0,0.26348392]
[1748857048203,0.44345994,104740.0,104730.0,0.26348392]
[1748857048426,0.44345994,104740.0,104730.0,0.28168392]
[1748857049118,0.42436533,104740.0,104730.0,0.28168392]
[1748857049344,0.43391259,104740.0,104730.0,0.28168392]
[1748857049780,0.43373347,104740.0,104730.0,0.28168392]
[1748857050039,0.42418621,104740.0,104730.0,0.28168392]
[1748857050293,0.4337332,104740.0,104730.0,0.28168392]
[1748857050723,0.42418603,104740.0,104730.0,0.28168392]
[1748857051159,0.43373311,104740.0,104730.0,0.28168392]
[1748857051389,0.42418603,104740.0,104730.0,0.28168392]
[1748857051846,0.43373311,104740.0,104730.0,0.28168392]
[1748857052951,0.43373311,104740.0,104730.0,0.28839262]
[1748857053418,0.63422993,104740.0,104730.0,0.23200148]
[1748857053644,1.01640739,104740.0,104730.0,0.00667718]
[1748857053891,0.63353595,104740.0,104730.0,0.00667718]
[1748857054569,0.63353595,104740.0,104730.0,0.19764442]
[1748857054989,0.63353595,104740.0,104730.0,0.20719278]
[1748857055219,0.63353595,104740.0,104730.0,0.01622554]
[1748857055839,0.63353595,104740.0,104730.0,0.00667718]
[1748857056452,0.63353595,104740.0,104730.0,0.19764442]
[1748857056653,0.63336784,104740.0,104730.0,0.19764442]
[1748857056813,0.62382067,104740.0,104730.0,0.00667718]
[1748857057222,0.62382067,104740.0,104730.0,0.20719278]
[1748857057845,0.62382067,104740.0,104730.0,0.21674105]
[1748857059242,0.62382067,104740.0,104730.0,0.22628923]
[1748857059484,0.62451455,104740.0,104730.0,0.23583722]
[1748857059699,0.42401828,104740.0,104730.0,0.26428494]
[1748857059911,0.0131994,104740.0,104730.0,0.26428494]
[1748857060121,0.43356455,104740.0,104730.0,0.28228494]
[1748857060335,0.43356455,104740.0,104730.0,0.28899428]
[1748857060540,0.44311172,104740.0,104730.0,0.28899414]
[1748857060750,0.44311181,104740.0,104730.0,0.28899414]
[1748857061380,0.44311181,104740.0,104730.0,0.28899411]
[1748857061638,0.43356455,104740.0,104730.0,0.28228494]
[1748857061902,0.44311172,104740.0,104730.0,0.28899413]
[1748857062143,0.44311172,104740.0,104730.0,0.28219194]
[1748857062641,0.04184028,104740.0,104730.0,0.28219194]
[1748857062839,0.43356455,104740.0,104730.0,0.28219194]
[1748857063052,0.42401756,104740.0,104730.0,0.28219194]
[1748857063255,0.43356446,104740.0,104730.0,0.28219194]
[1748857063463,0.41447084,104740.0,104730.0,0.28219194]
[1748857063675,0.40492421,104740.0,104730.0,0.28219194]
[1748857063934,0.41447084,104740.0,104730.0,0.28219194]
[1748857064989,0.41447084,104740.0,104730.0,0.30008329]
[1748857065575,0.41447084,104740.0,104730.0,0.30007871]
[1748857065776,0.41447084,104740.0,104730.0,0.3000787]
[1748857065981,0.40492421,104740.0,104730.0,0.3000787]
[1748857066379,0.00365277,104740.0,104730.0,0.3000787]
[1748857066629,0.40492421,104740.0,104730.0,0.3000787]
[1748857066817,0.41447084,104740.0,104730.0,0.3000787]
[1748857067057,0.40492421,104740.0,104730.0,0.3000787]
[1748857067673,0.40492421,104740.0,104730.0,0.30007542]
[1748857068088,0.00365277,104740.0,104730.0,0.39592972]
[1748857068309,0.00365277,104740.0,104730.0,0.49436972]
[1748857068534,0.00365277,104740.0,104730.0,1.42980116]
[1748857068751,0.00365277,104740.0,104730.0,1.53869853]
[1748857068989,0.00365277,104740.0,104730.0,1.56024696]
[1748857069231,0.00365277,104740.0,104730.0,1.85284678]
[1748857069447,0.001,104740.0,104730.0,1.83496924]
[1748857069860,0.42990403,104770.0,104760.0,0.21954834]
[1748857070063,0.42990403,104770.0,104760.0,0.31540264]
[1748857070710,0.42035968,104770.0,104760.0,0.33330264]
[1748857070924,0.42990403,104770.0,104760.0,0.33330264]
[1748857071141,0.03837171,104770.0,104760.0,0.33378855]
[1748857071349,0.43964315,104770.0,104760.0,0.33378855]
[1748857071555,0.44264315,104770.0,104760.0,0.33378855]
[1748857071786,0.45218723,104770.0,104760.0,0.35138855]
[1748857072216,0.45318723,104770.0,104760.0,0.35138855]
[1748857072431,0.46273167,104770.0,104760.0,0.35138855]
[1748857072854,0.45318723,104770.0,104760.0,0.35138855]
[1748857073142,0.46273158,104770.0,104760.0,0.35138855]
[1748857073357,0.45318723,104770.0,104760.0,0.35138855]
[1748857073960,0.47227602,104770.0,104760.0,0.35138855]
[1748857074173,0.47227593,104770.0,104760.0,0.35138855]
[1748857074407,0.48182046,104770.0,104760.0,0.33378855]
[1748857074616,0.47227593,104770.0,104760.0,0.33378855]
[1748857074828,0.46273149,104770.0,104760.0,0.33378855]
[1748857075040,0.47227602,104770.0,104760.0,0.33378855]
[1748857075680,0.48182064,104770.0,104760.0,0.33378855]
[1748857076513,0.47227602,104770.0,104760.0,0.33378855]
[1748857076717,0.48182064,104770.0,104760.0,0.33378855]
[1748857077004,0.66317099,104770.0,104760.0,0.32424356]
[1748857077182,0.66317099,104770.0,104760.0,0.33378855]
[1748857077800,0.47227666,104770.0,104760.0,0.33378855]
[1748857078318,0.46273195,104770.0,104760.0,0.33378855]
[1748857078520,0.47227648,104770.0,104760.0,0.33378855]
[1748857078736,0.67271543,104770.0,104760.0,0.33378855]
[1748857078939,0.47227693,104770.0,104760.0,0.34333372]
[1748857079066,0.67271597,104770.0,104760.0,0.34333372]
[1748857079555,0.67271597,104770.0,104760.0,0.33378873]
[1748857079726,0.67271597,104770.0,104760.0,0.34333381]
[1748857081782,0.66317171,104770.0,104760.0,0.32424356]
[1748857082033,0.66317171,104770.0,104760.0,0.33378873]
[1748857082256,0.66317171,104770.0,104760.0,0.34333381]
[1748857083086,0.6534879,104770.0,104760.0,0.32424356]
[1748857083313,0.6534879,104770.0,104760.0,0.34333381]
[1748857083772,0.45304895,104770.0,104760.0,0.3528788]
[1748857083978,0.45304895,104770.0,104760.0,0.3700788]
[1748857084642,0.64394328,104770.0,104760.0,0.33378873]
[1748857085266,0.45304895,104770.0,104760.0,0.3528788]
[1748857085472,0.65348817,104770.0,104760.0,0.200944]
[1748857085679,0.66998817,104770.0,104760.0,0.21048944]
[1748857085896,0.66998817,104770.0,104760.0,0.19139847]
[1748857086107,0.66998817,104770.0,104760.0,0.21048962]
[1748857086533,0.66998817,104770.0,104760.0,0.22003506]
[1748857086952,0.66044364,104770.0,104760.0,0.19139847]
[1748857087182,0.66044364,104770.0,104760.0,0.20094409]